fUST/lending_fUST_20240923
["ID","MTS","AMOUNT","RATE_DAILY","PERIOD"]
[338917393,1727073045202,-241.17638305,0.00038356,120]
[338917394,1727073045652,-576.035025,0.00034446,2]
[338917395,1727073045662,-26.48283191,0.00038356,120]
[338917396,1727073045752,-47.4815885,0.00038356,120]
[338917397,1727073045821,-184.85919654,0.00038356,120]
[338917398,1727073045831,-500.0,0.00038356,120]
[338917399,1727073045840,-500.0,0.00038356,120]
[338917400,1727073045851,-500.0,0.00038356,120]
[338917401,1727073045860,-500.0,0.00038356,120]
[338917402,1727073045870,-500.0,0.00038356,120]
[338917403,1727073045880,-500.0,0.00038356,120]
[338917404,1727073045891,-500.0,0.00038356,120]
[338917405,1727073045900,-520.41887537,0.00038356,120]
[338917406,1727073045910,-500.0,0.00038356,120]
[338917407,1727073045920,-594.40126821,0.00038356,120]
[338917408,1727073045929,-500.0,0.00038356,120]
[338917409,1727073045939,-500.0,0.00038356,120]
[338917410,1727073045949,-500.0,0.00038356,120]
[338917411,1727073046047,-572.08340941,0.00038356,120]
[338917412,1727073046059,-500.0,0.00038356,120]
[338917413,1727073046068,-500.0,0.00038356,120]
[338917414,1727073046077,-500.0,0.00038356,120]
[338917415,1727073046087,-447.81761246,0.00038356,120]
[338917416,1727073046099,-52.18238754,0.00038356,120]
[338917417,1727073046108,-500.0,0.00038356,120]
[338917418,1727073046118,-500.0,0.00038356,30]
[338917419,1727073046127,-500.0,0.00038356,120]
[338917420,1727073046136,-500.0,0.00038356,120]
[338917421,1727073046144,-500.0,0.00038356,120]
[338917422,1727073046154,-503.53189315,0.00038356,120]
[338917423,1727073046163,-502.30987082,0.00038356,120]
[338917424,1727073046172,-500.0,0.00038356,120]
[338917425,1727073046181,-500.0,0.00038356,120]
[338917426,1727073046190,-151.0,0.00038356,14]
[338917427,1727073046200,-500.0,0.00038356,120]
[338917428,1727073046211,-502.53024469,0.00038356,120]
[338917429,1727073046220,-500.0,0.00038356,120]
[338917430,1727073046230,-500.0,0.00038356,120]
[338917431,1727073046239,-500.0,0.00038356,120]
[338917432,1727073046250,-266.86536635,0.00038356,7]
[338917433,1727073046259,-615.28227381,0.00038356,120]
[338917434,1727073046268,-500.0,0.00038356,120]
[338917435,1727073046279,-500.0,0.00038356,120]
[338917436,1727073046290,-500.0,0.00038356,120]
[338917437,1727073046299,-723.03,0.00038356,120]
[338917438,1727073046307,-500.0,0.00038356,7]
[338917439,1727073046321,-151.0,0.00038356,14]
[338917440,1727073046331,-151.0,0.00038356,14]
[338917441,1727073046340,-500.0,0.00038356,120]
[338917442,1727073046349,-500.0,0.00038356,120]
[338917443,1727073046359,-502.84729248,0.00038356,120]
[338917444,1727073046368,-500.0,0.00038356,120]
[338917445,1727073046378,-503.40991674,0.00038356,120]
[338917446,1727073046387,-500.98947216,0.00038356,120]
[338917447,1727073046396,-501.53006102,0.00038356,120]
[338917448,1727073046405,-258.05543199,0.00038356,120]
[338917449,1727073046414,-500.0,0.00038356,120]
[338917450,1727073046423,-501.42095259,0.00038356,120]
[338917451,1727073046433,-500.0,0.00038356,120]
[338917452,1727073046442,-512.98520444,0.00038356,120]
[338917453,1727073046452,-500.0,0.00038356,120]
[338917454,1727073046461,-505.99166041,0.00038356,120]
[338917455,1727073046470,-174.17463263,0.00038356,120]
[338917474,1727073155547,500.0,0.00022001,2]
[338917475,1727073155875,500.0,0.00022001,2]
[338917476,1727073156211,531.6439212,0.00022001,2]
[338917481,1727073193958,150.0,0.000216,2]
[338917503,1727073708529,-500.0,0.00025,30]
[338917504,1727073708552,-290.53689465,0.00025,30]
[338917505,1727073708582,-209.46310535,0.00025,30]
[338917506,1727073708604,-500.0,0.00025,30]
[338919419,1727074036133,-489.243592,0.00027397,2]
[338919420,1727074036158,-166.47871,0.00031282,2]
[338919421,1727074036182,-489.243592,0.00033165,2]
[338919422,1727074036206,-426.518475,0.00034198,2]
[338919423,1727074036231,-600.0,0.00034548,120]
[338919424,1727074036256,-247.0137147,0.00034569,2]
[338919425,1727074036281,-400.0,0.00034601,2]
[338919426,1727074036307,-400.0,0.00034601,2]
[338919427,1727074036333,-16850.25449036,0.00034602,2]
[338919428,1727074094106,784.14689465,0.00026,60]
[338919429,1727074155170,-500.0,0.00025999,2]
[338919430,1727074155195,-350.40106168,0.00025999,2]
[338919431,1727074155339,-300.0,0.00025999,2]
[338919432,1727074155368,-300.0,0.00025999,2]
[338919433,1727074155390,-11447.06098003,0.00026,60]
[338919434,1727074162164,-26323.61947832,0.00026,60]
[338919435,1727074164104,-3772.27954488,0.00026,60]
[338919436,1727074165107,-154.89310212,0.00026,60]
[338919437,1727074165129,-213.259237,0.00026924,2]
[338919438,1727074165150,-1500.0,0.00027,42]
[338919439,1727074165171,-1500.0,0.00027931,42]
[338919440,1727074165191,-420.0,0.00028137,2]
[338919441,1727074165214,-420.0,0.00028599,2]
[338919442,1727074165235,-1500.0,0.00028862,42]
[338919443,1727074165257,-1500.0,0.00029793,42]
[338919493,1727074231952,-673.65611446,0.00030724,42]
[338919495,1727074231964,-826.34388554,0.00030724,42]
[338919497,1727074231974,-265.8408371,0.00031655,42]
[338919641,1727074238283,-1234.1591629,0.00031655,42]
[338919642,1727074238293,-221.83021516,0.00032586,42]
[338919643,1727074238304,-1278.16978484,0.00032586,42]
[338919644,1727074238313,-400.0,0.00032953,2]
[338919645,1727074238323,-400.0,0.00032953,2]
[338919646,1727074238332,-150.0,0.00033359,14]
[338919647,1727074238341,-150.0,0.00033359,14]
[338919648,1727074238350,-200.0,0.00033359,14]
[338919649,1727074238359,-421.83021516,0.00033517,42]
[338919650,1727074238370,-254.63533274,0.00033517,42]
[338919652,1727074238456,-823.5344521,0.00033517,42]
[338919654,1727074238465,-1500.0,0.00034448,42]
[338919656,1727074238474,-990.33880059,0.00034602,2]
[338919659,1727074238485,-7059.40670905,0.00034602,2]
[338919660,1727074238495,-2433.6510839,0.00034623,2]
[338919663,1727074238504,-700.0,0.00034876,10]
[338919665,1727074238513,-274.94173,0.00035,120]
[338919666,1727074238523,-1500.0,0.00035379,42]
[338919668,1727074238533,-560.0,0.00035408,2]
[338919669,1727074238541,-200.0,0.00035616,2]
[338919670,1727074238551,-409.875526,0.00035616,120]
[338919671,1727074238560,-700.0,0.00035698,10]
[338919672,1727074238569,-560.0,0.00036248,2]
[338919673,1727074238578,-1500.0,0.0003631,42]
[338919674,1727074238588,-1216.0,0.00036457,2]
[338919675,1727074238597,-700.0,0.0003652,10]
[338919676,1727074238606,-600.0,0.00037205,120]
[338919677,1727074238615,-1500.0,0.00037241,42]
[338919678,1727074238624,-700.0,0.00037342,10]
[338919679,1727074238634,-152.43480147,0.00037413,21]
[338919680,1727074238643,-167.85703615,0.00037616,49]
[338919681,1727074238653,-500.0,0.00038,120]
[338919682,1727074238663,-783.0,0.00038046,2]
[338919683,1727074238672,-168.84924708,0.00038255,7]
[338919684,1727074238682,-33805.49656503,0.00038336,5]
[338919685,1727074238693,-786.13549587,0.00038336,5]
[338919686,1727074238702,-202.88177535,0.00038336,5]
[338919687,1727074238711,-251.03879701,0.00038345,120]
[338919704,1727074240079,-845.78336498,0.00038345,120]
[338919705,1727074240090,-374.39571636,0.00038345,120]
[338919736,1727074242982,-1528.78212165,0.00038345,120]
[338919738,1727074242992,-5649.31119309,0.00038346,5]
[338919740,1727074243007,-6560.47107062,0.00038346,5]
[338919744,1727074243035,-924.05897205,0.00038346,5]
[338919745,1727074243046,-323.46833195,0.00038346,5]
[338919789,1727074246012,-817.47574051,0.00038346,5]
[338919790,1727074246024,-521.34904863,0.00038346,5]
[338919791,1727074246035,-5082.082361,0.00038346,5]
[338919806,1727074346564,215.85310535,0.00025,30]
[338919807,1727074346593,323.74303743,0.00025,30]
[338919808,1727074353458,500.0,0.00025,30]
[338919810,1727074394078,5850.0,0.000216,2]
[338919811,1727074475133,10000.0,0.00022001,2]
[338919812,1727074490907,7100.41,0.00022001,2]
[338919822,1727074994893,150.0,0.000216,2]
[338919823,1727075155139,-384.70231348,0.00024,2]
[338919824,1727075155160,-785.01552081,0.00024874,2]
[338919825,1727075155182,-156.86953586,0.00027297,2]
[338919826,1727075155202,-151.0,0.0003,120]
[338919827,1727075155222,-151.0,0.0003,120]
[338919828,1727075155243,-400.0,0.0003069,2]
[338919829,1727075155264,-400.0,0.0003069,2]
[338919830,1727075155286,-2480.52535733,0.00030691,2]
[338919832,1727075232116,-366.42940023,0.00027397,2]
[338919833,1727075249103,-101.87340477,0.00027397,2]
[338919834,1727075249133,-156.86953586,0.00029731,2]
[338919835,1727075249159,-213.2592382,0.00029831,2]
[338919836,1727075249183,-250.0,0.00030355,2]
[338919837,1727075249209,-250.0,0.00030438,2]
[338919838,1727075249232,-250.0,0.00030521,2]
[338919839,1727075249252,-319.46925474,0.00030538,3]
[338919840,1727075249274,-250.0,0.00030604,2]
[338919841,1727075249301,-250.0,0.00030688,2]
[338919842,1727075249323,-400.0,0.0003069,2]
[338919843,1727075249344,-400.0,0.0003069,2]
[338919844,1727075249365,-13119.98601447,0.00030691,2]
[338919967,1727075438443,-400.0,0.0003069,2]
[338919968,1727075438452,-400.0,0.0003069,2]
[338919969,1727075438462,-9299.4886282,0.00030691,2]
[338919970,1727075438471,-169.089722,0.000307,2]
[338919971,1727075438481,-250.0,0.00030771,2]
[338919972,1727075438490,-250.0,0.00030854,2]
[338919973,1727075438500,-343.519709,0.0003088,2]
[338919975,1727075438509,-250.0,0.00030938,2]
[338919977,1727075438518,-950.6217065,0.00030997,2]
[338919979,1727075438528,-250.0,0.00031021,2]
[338919980,1727075438537,-250.0,0.00031104,2]
[338919981,1727075438545,-250.0,0.00031187,2]
[338919982,1727075438554,-250.0,0.00031271,2]
[338919983,1727075438564,-250.0,0.00031354,2]
[338919984,1727075438572,-250.0,0.00031437,2]
[338919985,1727075438581,-250.0,0.0003152,2]
[338919986,1727075438593,-343.519709,0.00031565,2]
[338919987,1727075438603,-250.0,0.00031604,2]
[338919988,1727075438613,-250.0,0.00031687,2]
[338919989,1727075438623,-250.0,0.0003177,2]
[338919990,1727075438632,-151.0,0.00031808,120]
[338919991,1727075438642,-250.0,0.00031853,2]
[338919992,1727075438651,-250.0,0.00031937,2]
[338919993,1727075438661,-343.519709,0.0003225,2]
[338919994,1727075438670,-188.838,0.00032707,33]
[338919995,1727075438679,-151.0,0.00032849,120]
[338919996,1727075438688,-560.0,0.00033053,2]
[338919997,1727075438698,-468.302805,0.00033165,2]
[338919998,1727075438708,-150.0,0.00033361,14]
[338919999,1727075438718,-150.0,0.00033361,14]
[338920000,1727075438727,-200.0,0.00033361,14]
[338920001,1727075438737,-151.0,0.00033616,120]
[338920002,1727075438747,-548.0,0.00033759,2]
[338920003,1727075438756,-1232.98820069,0.0003388,2]
[338920004,1727075438766,-166.23642161,0.0003389,2]
[338920005,1727075438776,-333.56324192,0.00033973,5]
[338920006,1727075438785,-520.55397532,0.00033973,5]
[338920007,1727075438795,-500.0,0.00033973,5]
[338920008,1727075438805,-500.0,0.00033973,5]
[338920009,1727075438815,-500.0,0.00033973,5]
[338920010,1727075438825,-500.0,0.00033973,5]
[338920011,1727075438834,-500.0,0.00033979,7]
[338920012,1727075438844,-500.0,0.00033979,7]
[338920013,1727075438855,-500.0,0.00033979,7]
[338920014,1727075438865,-500.0,0.00033979,7]
[338920015,1727075438875,-500.0,0.00033979,7]
[338920016,1727075438884,-454.43914895,0.00033979,7]
[338920017,1727075438894,-500.0,0.00033979,7]
[338920018,1727075438903,-500.0,0.00033979,7]
[338920019,1727075438913,-500.0,0.00033979,7]
[338920020,1727075438922,-500.0,0.00033979,7]
[338920021,1727075438932,-534.72740152,0.00033979,7]
[338920022,1727075438942,-200.0,0.00033979,7]
[338920023,1727075438952,-500.0,0.00033979,7]
[338920024,1727075438961,-500.0,0.00033979,7]
[338920025,1727075438970,-500.0,0.00033979,7]
[338920026,1727075438980,-663.34,0.0003398,3]
[338920027,1727075438989,-31868.139622,0.0003398,5]
[338920028,1727075439000,-192.73768655,0.0003398,5]
[338920029,1727075439010,-303.76664199,0.00033989,7]
[338920030,1727075439020,-308.3336808,0.00033989,7]
[338920031,1727075439029,-218.72678521,0.00033989,7]
[338920032,1727075439039,-12144.05746682,0.0003399,9]
[338920033,1727075439048,-2735.94560363,0.0003399,9]
[338920034,1727075439058,-127472.558488,0.0003399,5]
[338920035,1727075439067,-770.9507462,0.0003399,5]
[338920036,1727075439077,-171632.27504297,0.00034,23]
[338920037,1727075439086,-500.0,0.00034,120]
[338920038,1727075439096,-500.0,0.00034,120]
[338920039,1727075439107,-500.0,0.00034,120]
[338920040,1727075439116,-500.0,0.00034,120]
[338920041,1727075439126,-500.0,0.00034,120]
[338920042,1727075439136,-500.0,0.00034,120]
[338920043,1727075439146,-500.0,0.00034,120]
[338920044,1727075439157,-500.0,0.00034,120]
[338920045,1727075439167,-500.0,0.00034,120]
[338920046,1727075439176,-500.0,0.00034,120]
[338920047,1727075439186,-151.0,0.00034445,15]
[338920048,1727075439195,-501.37144861,0.00034521,5]
[338920049,1727075439205,-31868.139622,0.00034782,5]
[338920050,1727075439214,-192.73768655,0.00034782,5]
[338920051,1727075439223,-800.0,0.00034876,10]
[338920052,1727075439233,-500.0,0.00035,5]
[338920053,1727075439243,-1232.98820069,0.00035026,2]
[338920054,1727075439252,-500.0,0.0003515,5]
[338920055,1727075439262,-151.0,0.00035425,120]
[338920056,1727075439272,-783.0,0.00035599,2]
[338920057,1727075439282,-400.0,0.00035616,2]
[338920058,1727075439291,-307.406644,0.00035616,120]
[338920059,1727075439300,-800.0,0.00035698,10]
[338920060,1727075439310,-151.0,0.00035699,120]
[338920061,1727075439319,-4139.118,0.00035707,2]
[338920062,1727075439329,-151.0,0.00035775,15]
[338920063,1727075439339,-1232.98820069,0.00036171,2]
[338920064,1727075439349,-800.0,0.0003652,10]
[338920065,1727075439360,-151.0,0.00037105,15]
[338920066,1727075439370,-151.0,0.00037233,120]
[338920067,1727075439380,-1232.98820069,0.00037317,2]
[338920068,1727075439390,-800.0,0.00037342,10]
[338920069,1727075439399,-152.43480146,0.00037413,21]
[338920070,1727075439409,-152.25584,0.00037665,14]
[338920071,1727075439418,-152.25584,0.00037665,14]
[338920072,1727075439428,-378.55032445,0.00037669,2]
[338920073,1727075439438,-1999.999999,0.00038,120]
[338920074,1727075439448,-7809.77984152,0.00038,2]
[338920075,1727075439457,-1000.0,0.00038,5]
[338920076,1727075439467,-151.0,0.00038,14]
[338920077,1727075439477,-151.0,0.00038,14]
[338920078,1727075439487,-151.0,0.00038,14]
[338920079,1727075439497,-800.0,0.00038164,10]
[338920080,1727075439507,-150.112233,0.000382,5]
[338920081,1727075439518,-1000.0,0.00038246,2]
[338920082,1727075439528,-342.53510253,0.00038246,2]
[338920083,1727075439538,-31868.139622,0.00038306,5]
[338920084,1727075439547,-192.73768655,0.00038306,5]
[338920085,1727075439557,-151.0,0.0003833,14]
[338920086,1727075439566,-486.02515384,0.0003833,120]
[338920087,1727075439576,-1000.0,0.00038335,7]
[338920088,1727075439586,-1000.0,0.00038335,7]
[338920089,1727075439595,-31868.139622,0.00038336,5]
[338920090,1727075439605,-578.21305965,0.00038336,5]
[338920091,1727075439615,-472.0,0.0003834,5]
[338920092,1727075439627,-2356.12591667,0.00038345,120]
[338920094,1727075439637,-152.25584,0.00038345,14]
[338920096,1727075439646,-152.25584,0.00038345,14]
[338920098,1727075439656,-1156.4261193,0.00038346,5]
[338920099,1727075439665,-151.0,0.00038346,14]
[338920100,1727075439675,-151.0,0.00038346,14]
[338920101,1727075439685,-151.0,0.00038346,14]
[338920102,1727075439694,-151.0,0.00038346,14]
[338920103,1727075439705,-151.0,0.00038346,14]
[338920105,1727075439714,-242.956832,0.00038346,14]
[338920107,1727075439724,-152.25584,0.00038346,14]
[338920110,1727075439733,-152.25584,0.00038346,14]
[338920111,1727075439743,-152.25584,0.00038346,14]
[338920119,1727075439841,-152.25584,0.00038346,14]
[338920121,1727075439852,-546.91019867,0.00038355,2]
[338920123,1727075439868,-500.0,0.00038356,120]
[338920124,1727075439879,-638.36729924,0.00038356,120]
[338920126,1727075439888,-330.14063406,0.00038356,14]
[338920128,1727075439899,-621.81019955,0.00038356,30]
[338920130,1727075439910,-500.0,0.00038356,120]
[338920131,1727075439920,-500.0,0.00038356,120]
[338920132,1727075439929,-500.0,0.00038356,120]
[338920133,1727075439939,-500.0,0.00038356,120]
[338920134,1727075439948,-502.41965575,0.00038356,120]
[338920135,1727075439958,-289.8718949,0.00038356,120]
[338920136,1727075439968,-500.0,0.00038356,120]
[338920137,1727075439978,-500.0,0.00038356,7]
[338920138,1727075439988,-500.0,0.00038356,120]
[338920139,1727075439997,-500.0,0.00038356,120]
[338920140,1727075440008,-501.44171087,0.00038356,30]
[338920142,1727075440017,-500.0,0.00038356,120]
[338920144,1727075440026,-500.0,0.00038356,120]
[338920146,1727075440036,-500.0,0.00038356,120]
[338920148,1727075440046,-551.93470544,0.00038356,120]
[338920150,1727075440056,-500.0,0.00038356,120]
[338920152,1727075440066,-500.0,0.00038356,120]
[338920153,1727075440075,-500.24091805,0.00038356,120]
[338920155,1727075440085,-500.0,0.00038356,120]
[338920157,1727075440095,-500.0,0.00038356,120]
[338920159,1727075440106,-500.84564217,0.00038356,120]
[338920161,1727075440117,-151.0,0.00038356,14]
[338920162,1727075440126,-500.0,0.00038356,120]
[338920164,1727075440135,-500.0,0.00038356,120]
[338920166,1727075440145,-500.0,0.00038356,120]
[338920168,1727075440155,-500.0,0.00038356,120]
[338920170,1727075440164,-500.0,0.00038356,120]
[338920172,1727075440174,-500.0,0.00038356,120]
[338920173,1727075440183,-500.0,0.00038356,120]
[338920174,1727075440193,-500.0,0.00038356,30]
[338920175,1727075440202,-500.0,0.00038356,7]
[338920176,1727075440213,-500.44074212,0.00038356,5]
[338920177,1727075440223,-508.08676342,0.00038356,120]
[338920178,1727075440232,-500.0,0.00038356,120]
[338920179,1727075440241,-500.0,0.00038356,120]
[338920180,1727075440250,-501.82532861,0.00038356,120]
[338920181,1727075440259,-500.0,0.00038356,120]
[338920182,1727075440269,-500.0,0.00038356,120]
[338920183,1727075440279,-500.0,0.00038356,120]
[338920184,1727075440289,-500.0,0.00038356,120]
[338920185,1727075440298,-500.0,0.00038356,120]
[338920186,1727075440307,-350.63533965,0.00038356,120]
[338920187,1727075440318,-500.0,0.00038356,120]
[338920188,1727075440327,-500.0,0.00038356,120]
[338920189,1727075440336,-500.0,0.00038356,120]
[338920190,1727075440346,-500.0,0.00038356,120]
[338920191,1727075440355,-500.0,0.00038356,120]
[338920192,1727075440365,-500.0,0.00038356,120]
[338920193,1727075440374,-500.0,0.00038356,120]
[338920194,1727075440383,-500.0,0.00038356,120]
[338920195,1727075440393,-500.0,0.00038356,120]
[338920196,1727075440402,-500.0,0.00038356,120]
[338920197,1727075440412,-500.0,0.00038356,120]
[338920198,1727075440421,-500.0,0.00038356,120]
[338920199,1727075440430,-500.0,0.00038356,120]
[338920200,1727075440439,-500.0,0.00038356,120]
[338920201,1727075440449,-501.31233442,0.00038356,120]
[338920202,1727075440459,-500.0,0.00038356,120]
[338920203,1727075440468,-500.0,0.00038356,120]
[338920204,1727075440478,-186.67278142,0.00038356,120]
[338920205,1727075440487,-500.0,0.00038356,120]
[338920206,1727075440496,-500.0,0.00038356,120]
[338920207,1727075440505,-500.0,0.00038356,120]
[338920208,1727075440515,-500.0,0.00038356,120]
[338920209,1727075440524,-502.64116549,0.00038356,120]
[338920210,1727075440534,-500.0,0.00038356,120]
[338920211,1727075440543,-500.0,0.00038356,120]
[338920212,1727075440552,-500.0,0.00038356,120]
[338920213,1727075440561,-646.13086237,0.00038356,120]
[338920214,1727075440570,-540.55314568,0.00038356,120]
[338920215,1727075440580,-500.0,0.00038356,120]
[338920216,1727075440589,-506.58309336,0.00038356,120]
[338920217,1727075440598,-501.25568566,0.00038356,120]
[338920218,1727075440608,-500.0,0.00038356,120]
[338920219,1727075440618,-1000.0,0.00038356,30]
[338920220,1727075440631,-500.0,0.00038356,120]
[338920221,1727075440640,-500.0,0.00038356,120]
[338920222,1727075440649,-500.0,0.00038356,120]
[338920223,1727075440659,-216.57562199,0.00038356,120]
[338920224,1727075440669,-500.0,0.00038356,120]
[338920225,1727075440678,-151.0,0.00038356,14]
[338920226,1727075440687,-500.0,0.00038356,120]
[338920227,1727075440696,-500.0,0.00038356,30]
[338920228,1727075440706,-500.0,0.00038356,120]
[338920229,1727075440715,-500.0,0.00038356,120]
[338920230,1727075440725,-500.0,0.00038356,120]
[338920231,1727075440734,-500.0,0.00038356,120]
[338920232,1727075440744,-503.24263152,0.00038356,120]
[338920233,1727075440753,-500.0,0.00038356,120]
[338920234,1727075440762,-500.0,0.00038356,120]
[338920235,1727075440771,-500.0,0.00038356,120]
[338920236,1727075440780,-500.0,0.00038356,120]
[338920237,1727075440789,-501.9584585,0.00038356,120]
[338920238,1727075440798,-500.0,0.00038356,120]
[338920239,1727075440807,-500.0,0.00038356,120]
[338920240,1727075440816,-500.0,0.00038356,120]
[338920241,1727075440825,-500.0,0.00038356,120]
[338920242,1727075440835,-500.0,0.00038356,120]
[338920243,1727075440844,-500.0,0.00038356,120]
[338920244,1727075440854,-511.44930889,0.00038356,120]
[338920245,1727075440863,-501.89504483,0.00038356,120]
[338920246,1727075440873,-500.0,0.00038356,120]
[338920247,1727075440882,-500.0,0.00038356,120]
[338920248,1727075440891,-500.0,0.00038356,120]
[338920249,1727075440900,-500.0,0.00038356,120]
[338920250,1727075440909,-500.0,0.00038356,120]
[338920251,1727075440918,-500.0,0.00038356,120]
[338920252,1727075440927,-500.0,0.00038356,120]
[338920253,1727075440937,-500.0,0.00038356,120]
[338920254,1727075440946,-503.64693164,0.00038356,120]
[338920255,1727075440956,-500.0,0.00038356,120]
[338920256,1727075440965,-500.0,0.00038356,120]
[338920257,1727075440974,-500.0,0.00038356,120]
[338920258,1727075440983,-151.0,0.00038356,14]
[338920259,1727075440992,-500.0,0.00038356,30]
[338920260,1727075441001,-151.0,0.00038356,14]
[338920261,1727075441010,-500.0,0.00038356,120]
[338920262,1727075441026,-500.0,0.00038356,120]
[338920263,1727075441035,-501.56968566,0.00038356,120]
[338920264,1727075441044,-504.84028688,0.00038356,120]
[338920265,1727075441053,-500.0,0.00038356,120]
[338920266,1727075441062,-535.63207157,0.00038356,120]
[338920267,1727075441071,-500.0,0.00038356,120]
[338920268,1727075441081,-500.0,0.00038356,120]
[338920269,1727075441090,-500.0,0.00038356,120]
[338920270,1727075441099,-500.0,0.00038356,120]
[338920271,1727075441110,-500.0,0.00038356,120]
[338920272,1727075441120,-500.0,0.00038356,120]
[338920273,1727075441129,-151.0,0.00038356,14]
[338920274,1727075441137,-500.0,0.00038356,120]
[338920275,1727075441147,-600.96263772,0.00038356,120]
[338920276,1727075441156,-500.0,0.00038356,120]
[338920277,1727075441165,-500.0,0.00038356,120]
[338920278,1727075441174,-500.0,0.00038356,120]
[338920279,1727075441183,-500.0,0.00038356,120]
[338920280,1727075441192,-500.0,0.00038356,120]
[338920281,1727075441202,-200.0,0.00038356,120]
[338920282,1727075441211,-500.0,0.00038356,7]
[338920283,1727075441220,-500.0,0.00038356,120]
[338920284,1727075441229,-500.0,0.00038356,120]
[338920285,1727075441238,-500.0,0.00038356,120]
[338920286,1727075441248,-500.0,0.00038356,120]
[338920287,1727075441258,-500.0,0.00038356,120]
[338920288,1727075441268,-502.85668135,0.00038356,120]
[338920289,1727075441277,-500.0,0.00038356,120]
[338920290,1727075441286,-5416.66,0.00038356,120]
[338920291,1727075441295,-504.16770579,0.00038356,120]
[338920292,1727075441305,-5416.66,0.00038356,120]
[338920293,1727075441314,-5416.66,0.00038356,120]
[338920294,1727075441323,-5416.66,0.00038356,120]
[338920295,1727075441332,-5416.66,0.00038356,120]
[338920296,1727075441341,-5416.66,0.00038356,120]
[338920297,1727075441350,-5416.66,0.00038356,120]
[338920298,1727075441360,-5416.66,0.00038356,120]
[338920299,1727075441370,-5416.66,0.00038356,120]
[338920300,1727075441379,-5416.66,0.00038356,120]
[338920301,1727075441388,-5416.66,0.00038356,120]
[338920302,1727075441397,-5416.66,0.00038356,120]
[338920303,1727075441406,-5416.66,0.00038356,120]
[338920304,1727075441415,-5416.66,0.00038356,120]
[338920305,1727075441424,-5416.66,0.00038356,120]
[338920306,1727075441433,-5416.66,0.00038356,120]
[338920307,1727075441443,-5416.66,0.00038356,120]
[338920308,1727075441452,-500.0,0.00038356,120]
[338920309,1727075441461,-500.0,0.00038356,120]
[338920310,1727075441470,-503.33269326,0.00038356,120]
[338920311,1727075441480,-500.0,0.00038356,120]
[338920312,1727075441489,-500.0,0.00038356,120]
[338920313,1727075441499,-303.74049159,0.00038356,120]
[338920314,1727075441508,-500.0,0.00038356,120]
[338920315,1727075441517,-500.0,0.00038356,120]
[338920316,1727075441527,-500.0,0.00038356,120]
[338920317,1727075441535,-503.47155495,0.00038356,120]
[338920318,1727075441545,-560.17,0.00038356,120]
[338920319,1727075441554,-500.0,0.00038356,120]
[338920320,1727075441564,-500.0,0.00038356,120]
[338920321,1727075441572,-507.46797719,0.00038356,120]
[338920322,1727075441581,-510.92987828,0.00038356,120]
[338920323,1727075441591,-500.0,0.00038356,2]
[338920324,1727075441601,-500.0,0.00038356,120]
[338920325,1727075441611,-500.0,0.00038356,120]
[338920326,1727075441622,-500.0,0.00038356,120]
[338920327,1727075441632,-502.31986415,0.00038356,120]
[338920328,1727075441642,-500.0,0.00038356,120]